[Event "Titled Tuesday Blitz September 27 Early 2022"]
[White "Ronka, Erik"]
[Black "Tari, Aryan"]
[WhiteFideId "505080"]
[BlackFideId "1510045"]
[WhiteElo "2264"]
[BlackElo "2612"]
[Result "0-1"]
[Round "01"]
[TimeControl "180+1"]
[Date "2022.09.27"]
[WhiteClock "0:00:08"]
[BlackClock "0:00:35"]

1. e4 {[%clk 0:03:00]}  e5 {[%clk 0:02:36]} 2. Nf3 {[%clk 0:03:01]}  Nc6 {[%clk 0:02:36]} 3. Bb5 {[%clk 0:03:01]}  a6 {[%clk 0:02:33]} 4. Ba4 {[%clk 0:03:02]}  Nge7 {[%clk 0:02:34]} 5. c3 {[%clk 0:03:00]}  g6 {[%clk 0:02:34]} 6. d4 {[%clk 0:03:00]}  exd4 {[%clk 0:02:34]} 7. cxd4 {[%clk 0:03:00]}  b5 {[%clk 0:02:30]} 8. Bb3 {[%clk 0:02:57]}  Bg7 {[%clk 0:02:29]} 9. d5 {[%clk 0:02:55]}  Na5 {[%clk 0:02:28]} 10. Bc2 {[%clk 0:02:52]}  d6 {[%clk 0:02:27]} 11. O-O {[%clk 0:02:50]}  O-O {[%clk 0:02:26]} 12. Re1 {[%clk 0:02:49]}  Nc4 {[%clk 0:02:25]} 13. Nd4 {[%clk 0:02:41]}  h6 {[%clk 0:02:13]} 14. a4 {[%clk 0:02:16]}  Bd7 {[%clk 0:02:08]} 15. Nc3 {[%clk 0:02:11]}  b4 {[%clk 0:02:07]} 16. Nce2 {[%clk 0:02:11]}  a5 {[%clk 0:02:05]} 17. b3 {[%clk 0:01:45]}  Nb6 {[%clk 0:02:03]} 18. Be3 {[%clk 0:01:39]}  Re8 {[%clk 0:01:59]} 19. Qd2 {[%clk 0:01:38]}  Kh7 {[%clk 0:01:58]} 20. h4 {[%clk 0:01:32]}  h5 {[%clk 0:01:34]} 21. Rad1 {[%clk 0:01:26]}  Ng8 {[%clk 0:01:23]} 22. Nf3 {[%clk 0:01:21]}  Nf6 {[%clk 0:01:19]} 23. Ng5+ {[%clk 0:01:18]}  Kg8 {[%clk 0:01:20]} 24. Nd4 {[%clk 0:01:01]}  Ng4 {[%clk 0:01:17]} 25. Bf4 {[%clk 0:00:57]}  Qf6 {[%clk 0:01:17]} 26. Ngf3 {[%clk 0:00:39]}  Ne5 {[%clk 0:01:04]} 27. Nxe5 {[%clk 0:00:30]}  dxe5 {[%clk 0:01:05]} 28. Bg5 {[%clk 0:00:30]}  Qd6 {[%clk 0:01:03]} 29. Nf3 {[%clk 0:00:28]}  c6 {[%clk 0:00:58]} 30. Bh6 {[%clk 0:00:27]}  cxd5 {[%clk 0:00:48]} 31. Bxg7 {[%clk 0:00:27]}  Kxg7 {[%clk 0:00:48]} 32. exd5 {[%clk 0:00:27]}  Rac8 {[%clk 0:00:48]} 33. Ng5 {[%clk 0:00:24]}  f5 {[%clk 0:00:45]} 34. f4 {[%clk 0:00:14]}  Qc5+ {[%clk 0:00:43]} 35. Kh1 {[%clk 0:00:12]}  Qxc2 {[%clk 0:00:44]} 36. Qe3 {[%clk 0:00:12]}  Qc5 {[%clk 0:00:40]} 37. Qg3 {[%clk 0:00:10]}  e4 {[%clk 0:00:40]} 38. Ne6+ {[%clk 0:00:07]}  Bxe6 {[%clk 0:00:39]} 39. dxe6 {[%clk 0:00:08]}  Rxe6 {[%clk 0:00:36]} 40. Qg5 {[%clk 0:00:09]}  Qe7 {[%clk 0:00:33]} 41. Qg3 {[%clk 0:00:08]}  Rc3 {[%clk 0:00:34]} 42. Qf2 {[%clk 0:00:08]}  e3 {[%clk 0:00:34]} 43. Qg3 {[%clk 0:00:08]}  e2 {[%clk 0:00:34]} 44. Rd3 {[%clk 0:00:08]}  Rxd3 {[%clk 0:00:34]} 45. Qxd3 {[%clk 0:00:09]}  Qxh4+ {[%clk 0:00:34]} 46. Kg1 {[%clk 0:00:08]}  Qxe1+ {[%clk 0:00:35]} 0-1


[Site "https://www.chess.com"]

[Event "Titled Tuesday Blitz September 27 Early 2022"]
[White "Rosenberg, Evan S"]
[Black "Mladek, Richard"]
[WhiteFideId "2019299"]
[BlackFideId "386588"]
[WhiteElo "2368"]
[BlackElo "2263"]
[Result "0-1"]
[Round "01"]
[TimeControl "180+1"]
[Date "2022.09.27"]
[WhiteClock "0:00:04"]
[BlackClock "0:00:10"]

1. Nf3 {[%clk 0:03:00]}  g6 {[%clk 0:02:58]} 2. e4 {[%clk 0:03:00]}  Bg7 {[%clk 0:02:57]} 3. d4 {[%clk 0:03:01]}  d6 {[%clk 0:02:56]} 4. Nc3 {[%clk 0:03:01]}  Nf6 {[%clk 0:02:56]} 5. h3 {[%clk 0:02:58]}  c6 {[%clk 0:02:56]} 6. Bd3 {[%clk 0:02:57]}  O-O {[%clk 0:02:55]} 7. Be3 {[%clk 0:02:55]}  b5 {[%clk 0:02:52]} 8. Qd2 {[%clk 0:02:55]}  Nbd7 {[%clk 0:02:42]} 9. e5 {[%clk 0:02:53]}  Ne8 {[%clk 0:02:26]} 10. e6 {[%clk 0:02:53]}  fxe6 {[%clk 0:02:26]} 11. Ng5 {[%clk 0:02:48]}  Nb6 {[%clk 0:02:17]} 12. h4 {[%clk 0:02:47]}  e5 {[%clk 0:02:05]} 13. dxe5 {[%clk 0:02:46]}  Bf5 {[%clk 0:01:55]} 14. h5 {[%clk 0:02:44]}  dxe5 {[%clk 0:01:48]} 15. hxg6 {[%clk 0:02:40]}  hxg6 {[%clk 0:01:46]} 16. O-O-O {[%clk 0:02:22]}  Nc7 {[%clk 0:01:34]} 17. Qe2 {[%clk 0:02:13]}  Nbd5 {[%clk 0:01:29]} 18. Nxd5 {[%clk 0:02:09]}  Nxd5 {[%clk 0:01:26]} 19. Bxf5 {[%clk 0:02:09]}  Rxf5 {[%clk 0:01:18]} 20. Ne6 {[%clk 0:02:09]}  Qa5 {[%clk 0:01:12]} 21. Nxg7 {[%clk 0:02:06]}  Kxg7 {[%clk 0:01:12]} 22. Kb1 {[%clk 0:01:29]}  Qb4 {[%clk 0:01:08]} 23. Bh6+ {[%clk 0:01:17]}  Kg8 {[%clk 0:01:04]} 24. Rd3 {[%clk 0:01:17]}  e4 {[%clk 0:00:54]} 25. Rb3 {[%clk 0:01:15]}  Qd4 {[%clk 0:00:54]} 26. Qg4 {[%clk 0:01:10]}  Kf7 {[%clk 0:00:51]} 27. Be3 {[%clk 0:01:07]}  Nxe3 {[%clk 0:00:47]} 28. fxe3 {[%clk 0:01:07]}  Qf6 {[%clk 0:00:46]} 29. a3 {[%clk 0:01:00]}  Rh8 {[%clk 0:00:35]} 30. Rxh8 {[%clk 0:00:57]}  Qxh8 {[%clk 0:00:36]} 31. Qxe4 {[%clk 0:00:54]}  Qf6 {[%clk 0:00:34]} 32. Rc3 {[%clk 0:00:45]}  c5 {[%clk 0:00:34]} 33. a4 {[%clk 0:00:37]}  Rf1+ {[%clk 0:00:30]} 34. Ka2 {[%clk 0:00:37]}  a6 {[%clk 0:00:19]} 35. Qd5+ {[%clk 0:00:36]}  Qe6 {[%clk 0:00:17]} 36. Qxe6+ {[%clk 0:00:35]}  Kxe6 {[%clk 0:00:17]} 37. Rxc5 {[%clk 0:00:36]}  bxa4 {[%clk 0:00:18]} 38. Rc6+ {[%clk 0:00:36]}  Kf5 {[%clk 0:00:17]} 39. Rxa6 {[%clk 0:00:34]}  Rg1 {[%clk 0:00:18]} 40. Rxa4 {[%clk 0:00:30]}  Rxg2 {[%clk 0:00:18]} 41. c4 {[%clk 0:00:25]}  g5 {[%clk 0:00:18]} 42. c5 {[%clk 0:00:23]}  Rc2 {[%clk 0:00:18]} 43. Ra5 {[%clk 0:00:18]}  g4 {[%clk 0:00:19]} 44. Kb1 {[%clk 0:00:17]}  Rc4 {[%clk 0:00:16]} 45. b3 {[%clk 0:00:17]}  Re4 {[%clk 0:00:15]} 46. c6+ {[%clk 0:00:16]}  Ke6 {[%clk 0:00:15]} 47. Rg5 {[%clk 0:00:15]}  Kd6 {[%clk 0:00:15]} 48. Rg6+ {[%clk 0:00:14]}  e6 {[%clk 0:00:15]} 49. Kc2 {[%clk 0:00:13]}  Kxc6 {[%clk 0:00:15]} 50. Kd3 {[%clk 0:00:13]}  Kd5 {[%clk 0:00:15]} 51. Rg5+ {[%clk 0:00:10]}  e5 {[%clk 0:00:16]} 52. Rg8 {[%clk 0:00:10]}  Rb4 {[%clk 0:00:16]} 53. Rd8+ {[%clk 0:00:10]}  Ke6 {[%clk 0:00:16]} 54. Re8+ {[%clk 0:00:10]}  Kf5 {[%clk 0:00:16]} 55. Rf8+ {[%clk 0:00:10]}  Ke6 {[%clk 0:00:16]} 56. Re8+ {[%clk 0:00:10]}  Kf5 {[%clk 0:00:17]} 57. Rf8+ {[%clk 0:00:10]}  Kg5 {[%clk 0:00:17]} 58. Rg8+ {[%clk 0:00:10]}  Kh4 {[%clk 0:00:18]} 59. Rh8+ {[%clk 0:00:11]}  Kg3 {[%clk 0:00:18]} 60. Kc3 {[%clk 0:00:11]}  Re4 {[%clk 0:00:18]} 61. Kd3 {[%clk 0:00:11]}  Rb4 {[%clk 0:00:18]} 62. Kc3 {[%clk 0:00:12]}  Rb5 {[%clk 0:00:19]} 63. Kc4 {[%clk 0:00:12]}  Rb7 {[%clk 0:00:19]} 64. b4 {[%clk 0:00:12]}  Kf2 {[%clk 0:00:18]} 65. e4 {[%clk 0:00:11]}  g3 {[%clk 0:00:18]} 66. Rf8+ {[%clk 0:00:11]}  Ke3 {[%clk 0:00:18]} 67. Rg8 {[%clk 0:00:11]}  Kf3 {[%clk 0:00:18]} 68. Rf8+ {[%clk 0:00:11]}  Kxe4 {[%clk 0:00:19]} 69. Kc5 {[%clk 0:00:11]}  g2 {[%clk 0:00:18]} 70. Rg8 {[%clk 0:00:11]}  Kf3 {[%clk 0:00:18]} 71. b5 {[%clk 0:00:10]}  e4 {[%clk 0:00:19]} 72. Rf8+ {[%clk 0:00:10]}  Ke2 {[%clk 0:00:19]} 73. Rg8 {[%clk 0:00:10]}  Kf2 {[%clk 0:00:19]} 74. Rf8+ {[%clk 0:00:10]}  Kg1 {[%clk 0:00:19]} 75. Kc6 {[%clk 0:00:10]}  Rh7 {[%clk 0:00:19]} 76. b6 {[%clk 0:00:10]}  e3 {[%clk 0:00:19]} 77. b7 {[%clk 0:00:09]}  Rxb7 {[%clk 0:00:18]} 78. Kxb7 {[%clk 0:00:10]}  e2 {[%clk 0:00:19]} 79. Re8 {[%clk 0:00:10]}  Kf1 {[%clk 0:00:20]} 80. Rf8+ {[%clk 0:00:10]}  Ke1 {[%clk 0:00:20]} 81. Rg8 {[%clk 0:00:10]}  Kf2 {[%clk 0:00:20]} 82. Rf8+ {[%clk 0:00:11]}  Kg3 {[%clk 0:00:20]} 83. Rg8+ {[%clk 0:00:11]}  Kf4 {[%clk 0:00:20]} 84. Rf8+ {[%clk 0:00:10]}  Ke5 {[%clk 0:00:18]} 85. Re8+ {[%clk 0:00:08]}  Kf6 {[%clk 0:00:18]} 86. Rxe2 {[%clk 0:00:08]}  g1=Q {[%clk 0:00:18]} 87. Re8 {[%clk 0:00:05]}  Qg2+ {[%clk 0:00:17]} 88. Kc8 {[%clk 0:00:05]}  Qc6+ {[%clk 0:00:16]} 89. Kd8 {[%clk 0:00:06]}  Kf7 {[%clk 0:00:16]} 90. Re7+ {[%clk 0:00:05]}  Kf8 {[%clk 0:00:15]} 91. Rd7 {[%clk 0:00:04]}  Qc5 {[%clk 0:00:10]} 0-1


[Site "https://www.chess.com"]

[Event "Titled Tuesday Blitz September 27 Early 2022"]
[White "Rostomyan, Mikayel"]
[Black "Cramling Bellon, Anna"]
[WhiteFideId "13313754"]
[BlackFideId "32009232"]
[WhiteElo "1426"]
[BlackElo "1905"]
[Result "0-1"]
[Round "01"]
[TimeControl "180+1"]
[Date "2022.09.27"]
[WhiteClock "0:00:18"]
[BlackClock "0:00:04"]

1. d4 {[%clk 0:02:53]}  Nf6 {[%clk 0:02:59]} 2. Nf3 {[%clk 0:02:53]}  d5 {[%clk 0:02:58]} 3. c4 {[%clk 0:02:52]}  e6 {[%clk 0:02:58]} 4. g3 {[%clk 0:02:51]}  Bb4+ {[%clk 0:02:45]} 5. Bd2 {[%clk 0:02:50]}  Bd6 {[%clk 0:02:41]} 6. Bg2 {[%clk 0:02:48]}  c6 {[%clk 0:02:41]} 7. Qc2 {[%clk 0:02:46]}  O-O {[%clk 0:02:40]} 8. O-O {[%clk 0:02:45]}  Nbd7 {[%clk 0:02:40]} 9. Bf4 {[%clk 0:02:42]}  Bxf4 {[%clk 0:02:40]} 10. gxf4 {[%clk 0:02:43]}  Qc7 {[%clk 0:02:38]} 11. e3 {[%clk 0:02:43]}  Ne4 {[%clk 0:02:32]} 12. Nbd2 {[%clk 0:02:40]}  f5 {[%clk 0:02:31]} 13. Ne5 {[%clk 0:02:38]}  Nxe5 {[%clk 0:02:28]} 14. fxe5 {[%clk 0:02:37]}  Qf7 {[%clk 0:02:23]} 15. f3 {[%clk 0:02:25]}  Nxd2 {[%clk 0:02:21]} 16. Qxd2 {[%clk 0:02:26]}  f4 {[%clk 0:02:18]} 17. e4 {[%clk 0:02:22]}  Qg6 {[%clk 0:01:50]} 18. Kh1 {[%clk 0:02:17]}  Bd7 {[%clk 0:01:49]} 19. Rae1 {[%clk 0:02:12]}  Rae8 {[%clk 0:01:37]} 20. c5 {[%clk 0:02:05]}  Qh5 {[%clk 0:01:34]} 21. b4 {[%clk 0:01:59]}  dxe4 {[%clk 0:01:33]} 22. Rxe4 {[%clk 0:01:53]}  Qh4 {[%clk 0:01:33]} 23. Qf2 {[%clk 0:01:47]}  Qh6 {[%clk 0:01:26]} 24. a4 {[%clk 0:01:43]}  Rf5 {[%clk 0:01:24]} 25. Rg1 {[%clk 0:01:39]}  Ref8 {[%clk 0:01:13]} 26. Bf1 {[%clk 0:01:36]}  Be8 {[%clk 0:01:09]} 27. Bd3 {[%clk 0:01:18]}  Rh5 {[%clk 0:00:57]} 28. Re2 {[%clk 0:01:14]}  Rh3 {[%clk 0:00:41]} 29. Rd2 {[%clk 0:00:45]}  Bh5 {[%clk 0:00:41]} 30. Be4 {[%clk 0:00:44]}  Rf5 {[%clk 0:00:30]} 31. Qf1 {[%clk 0:00:33]}  Bg6 {[%clk 0:00:04]} 32. Bxf5 {[%clk 0:00:26]}  Bxf5 {[%clk 0:00:05]} 33. Rdg2 {[%clk 0:00:26]}  Bg6 {[%clk 0:00:04]} 34. Rg4 {[%clk 0:00:18]}  Rxh2# {[%clk 0:00:04]} 0-1


[Site "https://www.chess.com"]

[Event "Titled Tuesday Blitz September 27 Early 2022"]
[White "Spalir, Monika"]
[Black "Concio, Michael Jr."]
[WhiteFideId "14609118"]
[BlackFideId "5217873"]
[WhiteElo "2032"]
[BlackElo "1896"]
[Result "1-0"]
[Round "01"]
[TimeControl "180+1"]
[Date "2022.09.27"]
[WhiteClock "0:00:11"]
[BlackClock "0:00:02"]

1. d4 {[%clk 0:03:00]}  Nf6 {[%clk 0:02:47]} 2. c4 {[%clk 0:03:00]}  e6 {[%clk 0:02:46]} 3. Nf3 {[%clk 0:02:59]}  Bb4+ {[%clk 0:02:45]} 4. Nbd2 {[%clk 0:02:52]}  d5 {[%clk 0:02:43]} 5. a3 {[%clk 0:02:39]}  Bxd2+ {[%clk 0:02:24]} 6. Qxd2 {[%clk 0:02:36]}  c6 {[%clk 0:02:25]} 7. Qc2 {[%clk 0:02:28]}  O-O {[%clk 0:02:23]} 8. Bg5 {[%clk 0:02:28]}  Nbd7 {[%clk 0:02:19]} 9. e3 {[%clk 0:02:28]}  b6 {[%clk 0:02:19]} 10. cxd5 {[%clk 0:02:25]}  cxd5 {[%clk 0:02:18]} 11. Bd3 {[%clk 0:02:16]}  h6 {[%clk 0:02:12]} 12. Bh4 {[%clk 0:02:16]}  Bb7 {[%clk 0:02:05]} 13. O-O {[%clk 0:02:15]}  Rc8 {[%clk 0:01:48]} 14. Qe2 {[%clk 0:02:15]}  Qc7 {[%clk 0:01:03]} 15. Bg3 {[%clk 0:02:04]}  Qc6 {[%clk 0:01:02]} 16. h3 {[%clk 0:01:13]}  Ne4 {[%clk 0:00:58]} 17. Bh2 {[%clk 0:01:09]}  f5 {[%clk 0:00:45]} 18. Bb5 {[%clk 0:01:06]}  Qc2 {[%clk 0:00:36]} 19. Qxc2 {[%clk 0:01:04]}  Rxc2 {[%clk 0:00:37]} 20. Bxd7 {[%clk 0:01:05]}  Rxb2 {[%clk 0:00:32]} 21. Bxe6+ {[%clk 0:01:03]}  Kh7 {[%clk 0:00:33]} 22. Rac1 {[%clk 0:00:55]}  Rf6 {[%clk 0:00:30]} 23. Bd7 {[%clk 0:00:34]}  Rf7 {[%clk 0:00:28]} 24. Rc7 {[%clk 0:00:27]}  Ba6 {[%clk 0:00:26]} 25. Rfc1 {[%clk 0:00:27]}  Ra2 {[%clk 0:00:18]} 26. Nh4 {[%clk 0:00:27]}  Rxf2 {[%clk 0:00:12]} 27. Be5 {[%clk 0:00:17]}  g5 {[%clk 0:00:05]} 28. Bxf5+ {[%clk 0:00:13]}  Rxf5 {[%clk 0:00:05]} 29. Nxf5 {[%clk 0:00:13]}  Rxc7 {[%clk 0:00:03]} 30. Rxc7+ {[%clk 0:00:14]}  Kg6 {[%clk 0:00:04]} 31. Ne7+ {[%clk 0:00:14]}  Kh5 {[%clk 0:00:04]} 32. Nxd5 {[%clk 0:00:14]}  g4 {[%clk 0:00:05]} 33. hxg4+ {[%clk 0:00:14]}  Kxg4 {[%clk 0:00:05]} 34. Rxa7 {[%clk 0:00:14]}  Bc4 {[%clk 0:00:05]} 35. Nxb6 {[%clk 0:00:12]}  Bd3 {[%clk 0:00:05]} 36. d5 {[%clk 0:00:12]}  Kf5 {[%clk 0:00:02]} 37. Bd4 {[%clk 0:00:12]}  Ng3 {[%clk 0:00:03]} 38. Rf7+ {[%clk 0:00:11]}  Ke4 {[%clk 0:00:02]} 39. Rf4# {[%clk 0:00:11]} 1-0


[Site "https://www.chess.com"]

[Event "Titled Tuesday Blitz September 27 Early 2022"]
[White "Sadykov, Ramil"]
[Black "Levitan, Caleb Levi"]
[WhiteFideId "24113590"]
[BlackFideId "14332620"]
[WhiteElo "2243"]
[BlackElo "1811"]
[Result "1-0"]
[Round "01"]
[TimeControl "180+1"]
[Date "2022.09.27"]
[WhiteClock "0:00:53"]
[BlackClock "0:00:10"]

1. d4 {[%clk 0:02:58]}  d5 {[%clk 0:02:59]} 2. Bf4 {[%clk 0:02:56]}  c5 {[%clk 0:02:56]} 3. e4 {[%clk 0:02:55]}  dxe4 {[%clk 0:02:52]} 4. d5 {[%clk 0:02:56]}  Nf6 {[%clk 0:02:46]} 5. Nc3 {[%clk 0:02:56]}  a6 {[%clk 0:02:43]} 6. Qe2 {[%clk 0:02:56]}  e6 {[%clk 0:02:38]} 7. O-O-O {[%clk 0:02:47]}  exd5 {[%clk 0:02:30]} 8. Nxd5 {[%clk 0:02:47]}  Nxd5 {[%clk 0:02:26]} 9. Qxe4+ {[%clk 0:02:47]}  Be6 {[%clk 0:02:27]} 10. c4 {[%clk 0:02:42]}  Nd7 {[%clk 0:02:00]} 11. cxd5 {[%clk 0:02:19]}  Nf6 {[%clk 0:02:00]} 12. Qe5 {[%clk 0:02:14]}  Nxd5 {[%clk 0:01:42]} 13. Bc4 {[%clk 0:02:09]}  Be7 {[%clk 0:00:24]} 14. Bxd5 {[%clk 0:01:38]}  Bf6 {[%clk 0:00:24]} 15. Bc6+ {[%clk 0:01:27]}  bxc6 {[%clk 0:00:21]} 16. Rxd8+ {[%clk 0:01:27]}  Rxd8 {[%clk 0:00:22]} 17. Qxc5 {[%clk 0:01:26]}  Bd5 {[%clk 0:00:18]} 18. Nf3 {[%clk 0:01:18]}  Be7 {[%clk 0:00:17]} 19. Re1 {[%clk 0:01:15]}  Be6 {[%clk 0:00:18]} 20. Qxc6+ {[%clk 0:01:12]}  Kf8 {[%clk 0:00:17]} 21. Rxe6 {[%clk 0:01:09]}  fxe6 {[%clk 0:00:16]} 22. Qxe6 {[%clk 0:01:09]}  Bf6 {[%clk 0:00:14]} 23. Ne5 {[%clk 0:01:05]}  Bxe5 {[%clk 0:00:13]} 24. Bxe5 {[%clk 0:01:06]}  h5 {[%clk 0:00:09]} 25. Bd6+ {[%clk 0:01:04]}  Rxd6 {[%clk 0:00:10]} 26. Qxd6+ {[%clk 0:01:04]}  Kf7 {[%clk 0:00:11]} 27. Qxa6 {[%clk 0:01:03]}  Re8 {[%clk 0:00:11]} 28. b4 {[%clk 0:01:01]}  Re1+ {[%clk 0:00:11]} 29. Kd2 {[%clk 0:01:01]}  Rh1 {[%clk 0:00:11]} 30. b5 {[%clk 0:01:00]}  Rxh2 {[%clk 0:00:11]} 31. b6 {[%clk 0:01:00]}  Rxg2 {[%clk 0:00:12]} 32. Qb7+ {[%clk 0:01:00]}  Ke8 {[%clk 0:00:11]} 33. Qxg2 {[%clk 0:01:01]}  g5 {[%clk 0:00:11]} 34. Qxg5 {[%clk 0:01:00]}  Kd7 {[%clk 0:00:10]} 35. Qc5 {[%clk 0:00:57]}  h4 {[%clk 0:00:09]} 36. b7 {[%clk 0:00:57]}  h3 {[%clk 0:00:10]} 37. b8=Q {[%clk 0:00:57]}  h2 {[%clk 0:00:10]} 38. Qbd6+ {[%clk 0:00:52]}  Ke8 {[%clk 0:00:10]} 39. Qe7# {[%clk 0:00:53]} 1-0


[Site "https://www.chess.com"]

[Event "Titled Tuesday Blitz September 27 Early 2022"]
[White "Sailer, Mike"]
[Black "Krishnan, Varun"]
[WhiteFideId "2012901"]
[BlackFideId "5054508"]
[WhiteElo "2109"]
[BlackElo "2630"]
[Result "0-1"]
[Round "01"]
[TimeControl "180+1"]
[Date "2022.09.27"]
[WhiteClock "0:00:02"]
[BlackClock "0:00:39"]

1. d4 {[%clk 0:03:00]}  d5 {[%clk 0:02:59]} 2. Nc3 {[%clk 0:03:00]}  Nf6 {[%clk 0:02:57]} 3. Bf4 {[%clk 0:03:00]}  c6 {[%clk 0:02:56]} 4. f3 {[%clk 0:02:59]}  g6 {[%clk 0:02:55]} 5. e4 {[%clk 0:02:59]}  dxe4 {[%clk 0:02:53]} 6. fxe4 {[%clk 0:02:59]}  Bg7 {[%clk 0:02:52]} 7. Qd2 {[%clk 0:02:59]}  O-O {[%clk 0:02:52]} 8. O-O-O {[%clk 0:02:58]}  b5 {[%clk 0:02:51]} 9. e5 {[%clk 0:02:53]}  Nd5 {[%clk 0:02:49]} 10. Ne4 {[%clk 0:02:47]}  Nxf4 {[%clk 0:02:44]} 11. Qxf4 {[%clk 0:02:45]}  Be6 {[%clk 0:02:38]} 12. h4 {[%clk 0:02:43]}  Qa5 {[%clk 0:02:35]} 13. a3 {[%clk 0:02:12]}  b4 {[%clk 0:02:35]} 14. Qd2 {[%clk 0:02:00]}  Qd5 {[%clk 0:02:23]} 15. Ng5 {[%clk 0:01:18]}  bxa3 {[%clk 0:02:09]} 16. bxa3 {[%clk 0:01:15]}  Qa2 {[%clk 0:02:03]} 17. Qc3 {[%clk 0:01:04]}  Bd5 {[%clk 0:02:01]} 18. N1f3 {[%clk 0:00:52]}  Nd7 {[%clk 0:01:53]} 19. Bd3 {[%clk 0:00:45]}  c5 {[%clk 0:01:30]} 20. Kd2 {[%clk 0:00:29]}  Bxf3 {[%clk 0:01:16]} 21. gxf3 {[%clk 0:00:24]}  cxd4 {[%clk 0:01:15]} 22. Qxd4 {[%clk 0:00:07]}  Nxe5 {[%clk 0:00:39]} 23. Ra1 {[%clk 0:00:02]}  Nxd3 {[%clk 0:00:39]} 0-1


[Site "https://www.chess.com"]

[Event "Titled Tuesday Blitz September 27 Early 2022"]
[White "Salman, Pavel"]
[Black "Iturrizaga Bonelli, Eduardo"]
[WhiteFideId "24153753"]
[BlackFideId "3901211"]
[WhiteElo "2492"]
[BlackElo "2823"]
[Result "0-1"]
[Round "01"]
[TimeControl "180+1"]
[Date "2022.09.27"]
[WhiteClock "0:00:19"]
[BlackClock "0:01:01"]

1. Nf3 {[%clk 0:03:00]}  Nf6 {[%clk 0:02:58]} 2. g3 {[%clk 0:03:00]}  b6 {[%clk 0:02:57]} 3. Bg2 {[%clk 0:02:59]}  Bb7 {[%clk 0:02:58]} 4. O-O {[%clk 0:03:00]}  g6 {[%clk 0:02:58]} 5. d3 {[%clk 0:03:01]}  Bg7 {[%clk 0:02:58]} 6. Nbd2 {[%clk 0:03:02]}  O-O {[%clk 0:02:59]} 7. e4 {[%clk 0:03:02]}  c5 {[%clk 0:03:00]} 8. c3 {[%clk 0:03:02]}  Nc6 {[%clk 0:03:00]} 9. Re1 {[%clk 0:03:02]}  d6 {[%clk 0:03:00]} 10. a4 {[%clk 0:03:03]}  Rc8 {[%clk 0:03:00]} 11. Nf1 {[%clk 0:03:00]}  Nd7 {[%clk 0:03:00]} 12. h4 {[%clk 0:02:59]}  h6 {[%clk 0:02:58]} 13. h5 {[%clk 0:02:55]}  g5 {[%clk 0:02:58]} 14. Ne3 {[%clk 0:02:55]}  e6 {[%clk 0:02:58]} 15. Rf1 {[%clk 0:02:41]}  Kh8 {[%clk 0:02:54]} 16. Nd2 {[%clk 0:02:37]}  Nde5 {[%clk 0:02:48]} 17. Qe2 {[%clk 0:02:35]}  Ba6 {[%clk 0:02:47]} 18. Ndc4 {[%clk 0:02:28]}  Na5 {[%clk 0:02:41]} 19. f4 {[%clk 0:02:19]}  gxf4 {[%clk 0:02:40]} 20. gxf4 {[%clk 0:02:19]}  Nexc4 {[%clk 0:02:40]} 21. dxc4 {[%clk 0:02:19]}  f5 {[%clk 0:02:39]} 22. exf5 {[%clk 0:02:07]}  exf5 {[%clk 0:02:40]} 23. Bd5 {[%clk 0:02:01]}  Qh4 {[%clk 0:02:29]} 24. Ng2 {[%clk 0:01:59]}  Qf6 {[%clk 0:02:27]} 25. Be3 {[%clk 0:01:54]}  Rfe8 {[%clk 0:02:27]} 26. Rae1 {[%clk 0:01:51]}  Re7 {[%clk 0:02:23]} 27. Qf2 {[%clk 0:01:50]}  Bxc4 {[%clk 0:02:20]} 28. Bxc4 {[%clk 0:01:46]}  Nxc4 {[%clk 0:02:21]} 29. Nh4 {[%clk 0:01:46]}  Re4 {[%clk 0:02:08]} 30. Ng6+ {[%clk 0:01:46]}  Kh7 {[%clk 0:02:08]} 31. Bc1 {[%clk 0:01:42]}  Rce8 {[%clk 0:02:07]} 32. Rxe4 {[%clk 0:01:41]}  fxe4 {[%clk 0:02:08]} 33. Re1 {[%clk 0:01:37]}  d5 {[%clk 0:02:05]} 34. Qg3 {[%clk 0:01:28]}  Qf5 {[%clk 0:02:02]} 35. Re2 {[%clk 0:01:08]}  Qxh5 {[%clk 0:02:00]} 36. Rg2 {[%clk 0:01:08]}  Bf6 {[%clk 0:01:55]} 37. f5 {[%clk 0:00:55]}  Ne5 {[%clk 0:01:28]} 38. Nxe5 {[%clk 0:00:36]}  Bxe5 {[%clk 0:01:28]} 39. Qg6+ {[%clk 0:00:36]}  Qxg6 {[%clk 0:01:26]} 40. Rxg6 {[%clk 0:00:37]}  Rg8 {[%clk 0:01:09]} 41. Rxg8 {[%clk 0:00:35]}  Kxg8 {[%clk 0:01:10]} 42. Bxh6 {[%clk 0:00:36]}  Kf7 {[%clk 0:01:11]} 43. Bg5 {[%clk 0:00:34]}  Bf6 {[%clk 0:01:09]} 44. Bf4 {[%clk 0:00:33]}  d4 {[%clk 0:01:09]} 45. c4 {[%clk 0:00:29]}  d3 {[%clk 0:01:07]} 46. b3 {[%clk 0:00:28]}  Bd4+ {[%clk 0:01:03]} 47. Kf1 {[%clk 0:00:28]}  e3 {[%clk 0:01:03]} 48. Bg3 {[%clk 0:00:19]}  e2+ {[%clk 0:01:01]} 49. Kg2 {[%clk 0:00:19]}  d2 {[%clk 0:01:01]} 50. Kf3 {[%clk 0:00:19]}  d1=Q {[%clk 0:01:01]} 0-1


[Site "https://www.chess.com"]